lending/lending_fUSD_20240507
["ID","MTS","AMOUNT","RATE_DAILY","PERIOD"]
[326531484,1715074906393,150.0,0.00011993,2]
[326531485,1715075004016,5459.29,0.00012034,2]
[326531486,1715075103198,751.92,0.00011981,2]
[326531487,1715075105106,237.44,0.0001197,2]
[326531488,1715075183642,150.0,0.00011993,2]
[326531489,1715075205778,155.0,0.00012825,2]
[326531492,1715075432624,-2863.29626526,0.00012851,2]
[326531493,1715075432636,-300.26416978,0.00012851,2]
[326531494,1715075432648,-2697.48051752,0.00012851,2]
[326531495,1715075432660,-380.04295626,0.00012851,2]
[326531502,1715075445066,-407.60248368,0.0001285,2]
[326531505,1715075445076,-30.93894558,0.0001285,2]
[326531521,1715075447000,-124.06105442,0.0001285,2]
[326531522,1715075447009,-457.86004628,0.00012851,2]
[326531523,1715075447021,-46975.21444399,0.00012851,2]
[326531524,1715075447031,-1114.69856119,0.00012853,2]
[326531525,1715075447040,-725.7876,0.00012865,2]
[326531526,1715075447050,-163.06,0.0001287,2]
[326531527,1715075447059,-163.06,0.0001287,2]
[326531528,1715075447069,-24706.46644717,0.00012889,2]
[326531529,1715075447079,-626.84782003,0.0001289,2]
[326531530,1715075447088,-169.3421,0.0001289,2]
[326531531,1715075447097,-7957.4777,0.0001289,2]
[326531532,1715075447106,-500.0,0.0001289,2]
[326531533,1715075447115,-1000.0,0.00012891,2]
[326531534,1715075447124,-1000.0,0.00012891,2]
[326531535,1715075447135,-499.99,0.00012891,2]
[326531536,1715075447144,-336.13373823,0.00012891,2]
[326531537,1715075447153,-1603.33188358,0.00012895,2]
[326531538,1715075447162,-500.0,0.00012896,2]
[326531539,1715075447172,-21643.6655,0.00012896,2]
[326531540,1715075447182,-9013.88892551,0.00012897,2]
[326531541,1715075447191,-179.72972525,0.00012897,2]
[326531542,1715075447201,-10000.0,0.000129,2]
[326531543,1715075447210,-173.42932698,0.000129,2]
[326531544,1715075447220,-5387.814,0.000129,2]
[326531545,1715075447229,-360.38544364,0.000129,2]
[326531546,1715075447238,-216.12482262,0.000129,2]
[326531547,1715075447247,-271.25741734,0.000129,2]
[326531548,1715075447257,-4261.58805674,0.000129,2]
[326531549,1715075447266,-215.0,0.00012965,2]
[326531550,1715075447275,-662.199,0.00012965,2]
[326531551,1715075447285,-1139.0,0.00012965,2]
[326531552,1715075447294,-5744.0,0.00012965,2]
[326531553,1715075447304,-5906.0,0.00012965,2]
[326531554,1715075447315,-37793.0,0.00012965,2]
[326531555,1715075447324,-150.0,0.00012965,2]
[326531556,1715075447333,-277.9942,0.00012987,2]
[326531557,1715075447343,-781.81785418,0.00012989,2]
[326531558,1715075447352,-293.60467616,0.00012989,2]
[326531559,1715075447361,-288.12444544,0.00012989,2]
[326531560,1715075447370,-194.69101934,0.00012989,2]
[326531561,1715075447381,-206.23351954,0.00012989,2]
[326531562,1715075447391,-2400.00167862,0.0001299,2]
[326531563,1715075447400,-4865.6663949,0.00012991,2]
[326531564,1715075447409,-4083.697484,0.00012991,2]
[326531565,1715075447419,-3301.728573,0.00012991,2]
[326531566,1715075447428,-2519.7596621,0.00012991,2]
[326531567,1715075447438,-1737.7907512,0.00012991,2]
[326531568,1715075447447,-22026.0343437,0.00012991,2]
[326531569,1715075447457,-18486.195668,0.00012991,2]
[326531570,1715075447467,-14946.3569923,0.00012991,2]
[326531571,1715075447480,-11406.5183166,0.00012991,2]
[326531572,1715075447490,-7866.679641,0.00012991,2]
[326531573,1715075447499,-6403.3261367,0.00012991,2]
[326531574,1715075447510,-5880.523069,0.00012991,2]
[326531575,1715075447519,-5357.7200014,0.00012991,2]
[326531576,1715075447529,-4834.9169338,0.00012991,2]
[326531577,1715075447540,-4312.1138661,0.00012991,2]
[326531578,1715075447552,-28982.2940852,0.00012991,2]
[326531579,1715075447562,-16441.36206898,0.00012991,2]
[326531593,1715075448256,-10047.07149052,0.00012991,2]
[326531594,1715075448267,-1234.33885174,0.00012991,2]
[326531595,1715075448280,-5140.3720589,0.00012991,2]
[326531596,1715075448291,-5000.0,0.00012991,2]
[326531597,1715075448587,-12619.86212316,0.00012991,2]
[326531598,1715075448596,-21500.712508,0.00012991,2]
[326531599,1715075448606,-19006.8519823,0.00012991,2]
[326531600,1715075448616,-1698.2519052,0.00012991,2]
[326531601,1715075448625,-1540.1091729,0.00012991,2]
[326531602,1715075448634,-1381.9664407,0.00012991,2]
[326531603,1715075448644,-1223.8237085,0.00012991,2]
[326531604,1715075448654,-1065.6809763,0.00012991,2]
[326531605,1715075448664,-15067.61159,0.00012996,2]
[326531606,1715075448675,-5647.6353058,0.00012996,2]
[326531607,1715075448684,-248.144191,0.00012996,2]
[326531608,1715075448694,-300.35000028,0.00012997,2]
[326531609,1715075448703,-177.54622384,0.00012997,2]
[326531610,1715075448714,-252.49467778,0.00012997,2]
[326531611,1715075448724,-409.3828276,0.00012997,2]
[326531612,1715075448734,-1037.98964316,0.00012998,3]
[326531613,1715075448744,-26479.29522409,0.00012999,2]
[326531614,1715075448757,-432.33606407,0.00012999,2]
[326531615,1715075449233,-22011.5000001,0.00012999,2]
[326531616,1715075449247,-41983.25282806,0.00012999,2]
[326531617,1715075449256,-1005.28704345,0.00012999,3]
[326531618,1715075449266,-1005.28704344,0.00012999,3]
[326531619,1715075449276,-1005.28704345,0.00012999,3]
[326531620,1715075449285,-1005.28704345,0.00012999,3]
[326531621,1715075449295,-207.58542229,0.00012999,2]
[326531622,1715075449305,-1757.06661055,0.00012999,2]
[326531623,1715075449314,-235.11,0.00012999,2]
[326531624,1715075449324,-2498.08,0.00012999,2]
[326531625,1715075449333,-151.0,0.00012999,2]
[326531626,1715075449343,-1037.98964316,0.00012999,3]
[326531627,1715075449352,-1037.98964316,0.00012999,3]
[326531628,1715075449374,-1037.98964315,0.00012999,3]
[326531629,1715075449403,-3656.633082,0.00012999,2]
[326531630,1715075449436,-171.842199,0.00012999,2]
[326531631,1715075449452,-3656.633082,0.00012999,2]
[326531632,1715075449462,-171.842199,0.00012999,2]
[326531633,1715075449474,-259.588623,0.00012999,2]
[326531634,1715075449484,-259.588623,0.00012999,2]
[326531635,1715075449493,-151.0,0.00012999,2]
[326531636,1715075449503,-151.0,0.00012999,2]
[326531637,1715075449515,-220.210722,0.00012999,2]
[326531638,1715075449524,-220.210722,0.00012999,2]
[326531639,1715075449533,-39664.65903253,0.00013,2]
[326531640,1715075449546,-41910.50912479,0.00013,2]
[326531646,1715076202475,524.81065921,0.00012882,2]
[326531650,1715076644241,-155.0,0.00012889,2]
[326531652,1715076644251,-453.66498207,0.0001289,2]
[326531668,1715076646366,-1059.6838459,0.0001289,2]
[326531680,1715076647141,-830.31894527,0.0001289,2]
[326531682,1715076647166,-18659.38516999,0.00012899,2]
[326531683,1715076647188,-3062.16775511,0.000129,2]
[326531684,1715076647201,-5983.1895,0.000129,2]
[326531685,1715076647212,-340.7231,0.000129,2]
[326531686,1715076647223,-173.51921837,0.000129,2]
[326531687,1715076647235,-2500.0,0.000129,2]
[326531688,1715076647248,-180.29025803,0.000129,2]
[326531689,1715076647259,-240.25696242,0.000129,2]
[326531690,1715076647273,-5744.0,0.00012953,2]
[326531691,1715076647285,-7834.027,0.00012953,2]
[326531692,1715076647298,-3899.8215589,0.00012991,2]
[326531693,1715076647312,-19500.4995954,0.00012991,2]
[326531694,1715076647325,-15743.5989311,0.00012991,2]
[326531695,1715076647337,-11986.6982667,0.00012991,2]
[326531696,1715076647349,-8229.7976023,0.00012991,2]
[326531697,1715076647362,-4224.71193279,0.00012991,2]
[326531698,1715076647910,-248.18500521,0.00012991,2]
[326531699,1715076647921,-875.79567924,0.00012991,2]
[326531700,1715076648050,-448.04768736,0.00012991,2]
[326531701,1715076648061,-1068.7961562,0.00012991,2]
[326531702,1715076648072,-813.7489457,0.00012991,2]
[326531703,1715076648082,-558.7017353,0.00012991,2]
[326531704,1715076648093,-303.6545249,0.00012991,2]
[326531705,1715076648104,-20720.26404,0.00012991,2]
[326531706,1715076648115,-16728.3676603,0.00012991,2]
[326531707,1715076648127,-12736.4712805,0.00012991,2]
[326531708,1715076648138,-8744.5749008,0.00012991,2]
[326531709,1715076648149,-4752.6785211,0.00012991,2]
[326531710,1715076648160,-8613.7753941,0.00012991,2]
[326531711,1715076648171,-6954.2743981,0.00012991,2]
[326531712,1715076648182,-5294.7734021,0.00012991,2]
[326531713,1715076648193,-3635.2724061,0.00012991,2]
[326531714,1715076648204,-1975.7714102,0.00012991,2]
[326531715,1715076648215,-300.35000028,0.00012998,2]
[326531716,1715076648226,-177.54622384,0.00012998,2]
[326531717,1715076648236,-252.49467778,0.00012998,2]
[326531718,1715076648247,-409.3828276,0.00012998,2]
[326531719,1715076648258,-283.92311728,0.00012999,2]
[326531720,1715076648269,-207.58542229,0.00012999,2]
[326531721,1715076648279,-1757.06661055,0.00012999,2]
[326531722,1715076648290,-1029.81399323,0.00012999,3]
[326531723,1715076648300,-1029.81399323,0.00012999,3]
[326531724,1715076648311,-1029.81399323,0.00012999,3]
[326531725,1715076648321,-1029.81399323,0.00012999,3]
[326531726,1715076648332,-1013.46269337,0.00012999,3]
[326531727,1715076648344,-1013.46269337,0.00012999,3]
[326531728,1715076648355,-1013.46269337,0.00012999,3]
[326531729,1715076648366,-1013.46269339,0.00012999,3]
[326531730,1715076648376,-2498.08,0.00012999,2]
[326531731,1715076648387,-499.99,0.00012999,2]
[326531732,1715076648397,-2696.93197979,0.00013,2]
[326531733,1715076648409,-117581.90822902,0.00013,2]
[326531734,1715076670416,1400.0,0.000125,4]
[326531735,1715076672514,2900.0,0.000126,4]
[326531736,1715076674816,4400.0,0.000127,4]
[326531737,1715076678890,5900.0,0.000128,4]
[326531738,1715076827236,958.27201,0.0001287,2]
[326531759,1715077375838,156.94,0.00012454,2]
[326531760,1715077391100,78352.0,0.00025,120]
[326531761,1715077410844,151.0,0.00020679,120]
[326531766,1715077567551,-155.0,0.00012889,2]
[326531767,1715077614436,-453.66498207,0.0001289,2]
[326531768,1715077646444,-150.0,0.00012899,2]
[326531769,1715077709144,-2831.03983639,0.000129,2]
[326531770,1715077709179,-5983.1895,0.000129,2]
[326531771,1715077709231,-322.5028742,0.000129,2]
[326531772,1715077709300,-3728.88954963,0.000129,2]
[326531774,1715077777976,500.0,0.000125,4]
[326531775,1715077779659,1000.0,0.000126,4]
[326531776,1715077782278,1500.0,0.000127,4]
[326531777,1715077783421,2000.0,0.000128,4]
[326531778,1715077786458,2500.0,0.000129,4]
[326531900,1715077839690,-6990.91142498,0.00012933,2]
[326531901,1715077839731,-340.7231,0.00012934,2]
[326531902,1715077839764,-293.97796203,0.0001299,2]
[326531903,1715077839775,-930.9222866,0.00012991,2]
[326531904,1715077839786,-840.5118318,0.00012991,2]
[326531905,1715077839842,-750.101377,0.00012991,2]
[326531906,1715077839861,-659.6909222,0.00012991,2]
[326531907,1715077839873,-569.2804674,0.00012991,2]
[326531908,1715077839924,-2247.2449661,0.00012991,2]
[326531909,1715077839957,-1890.5568098,0.00012991,2]
[326531910,1715077839975,-1533.8686535,0.00012991,2]
[326531911,1715077839986,-1177.1804973,0.00012991,2]
[326531912,1715077840045,-820.492341,0.00012991,2]
[326531913,1715077840057,-14926.4579101,0.00012991,2]
[326531914,1715077840070,-12557.2944091,0.00012991,2]
[326531915,1715077840095,-10188.130908,0.00012991,2]
[326531916,1715077840106,-7818.967407,0.00012991,2]
[326531917,1715077840122,-5449.8039059,0.00012991,2]
[326531918,1715077840148,-5791.0701624,0.00012991,2]
[326531919,1715077840164,-4871.8974998,0.00012991,2]
[326531920,1715077840188,-3952.7248372,0.00012991,2]
[326531921,1715077840202,-3033.5521745,0.00012991,2]
[326531922,1715077840213,-2114.3795119,0.00012991,2]
[326531923,1715077840246,-177.54622384,0.00012998,2]
[326531924,1715077840258,-252.49467778,0.00012998,2]
[326531925,1715077840270,-283.92311728,0.00012998,2]
[326531926,1715077840302,-409.3828276,0.00012998,2]
[326531927,1715077840365,-300.35000028,0.00012998,2]
[326531928,1715077840376,-294.86126015,0.00012998,2]
[326531929,1715077840387,-529.48141253,0.00012998,2]
[326531930,1715077840426,-18607.84918352,0.00012998,2]
[326531931,1715077841356,-3428.48113858,0.00012998,2]
[326531933,1715077841370,-1000.0,0.00012998,2]
[326531934,1715077841415,-1000.0,0.00012998,2]
[326531935,1715077841452,-1000.0,0.00012998,2]
[326531936,1715077841462,-1000.0,0.00012998,2]
[326531937,1715077841473,-1000.0,0.00012998,2]
[326531938,1715077841483,-1000.0,0.00012998,2]
[326531939,1715077841494,-1000.0,0.00012998,2]
[326531940,1715077841508,-1000.0,0.00012998,2]
[326531941,1715077841518,-1000.0,0.00012998,2]
[326531942,1715077841558,-1000.0,0.00012998,2]
[326531943,1715077841579,-1000.0,0.00012998,2]
[326531944,1715077841598,-1000.0,0.00012998,2]
[326531945,1715077841611,-1000.0,0.00012998,2]
[326531946,1715077841624,-1000.0,0.00012998,2]
[326531947,1715077841640,-1000.0,0.00012998,2]
[326531948,1715077841650,-1000.0,0.00012998,2]
[326531949,1715077841680,-572.50531876,0.00012998,2]
[326531952,1715077847959,-427.49468124,0.00012998,2]
[326531954,1715077847971,-1000.0,0.00012998,2]
[326531955,1715077847982,-853.98787629,0.00012998,2]
[326531956,1715077847996,-146.01212371,0.00012998,2]
[326531957,1715077848048,-316.22887628,0.00012998,2]
[326531958,1715077848151,-683.77112372,0.00012998,2]
[326531959,1715077848164,-1000.0,0.00012998,2]
[326531960,1715077848175,-1000.0,0.00012998,2]
[326531961,1715077848214,-1000.0,0.00012998,2]
[326531962,1715077848226,-1000.0,0.00012998,2]
[326531963,1715077848237,-141.09185935,0.00012998,2]
[326531964,1715077848263,-858.90814065,0.00012998,2]
[326531965,1715077848289,-1000.0,0.00012998,2]
[326531966,1715077848306,-1000.0,0.00012998,2]
[326531967,1715077848321,-1000.0,0.00012998,2]
[326531968,1715077848353,-1000.0,0.00012998,2]
[326531969,1715077848365,-1000.0,0.00012998,2]
[326531970,1715077848376,-1000.0,0.00012998,2]
[326531971,1715077848391,-1000.0,0.00012998,2]
[326531972,1715077848401,-1000.0,0.00012998,2]
[326531973,1715077848412,-1000.0,0.00012998,2]
[326531974,1715077848431,-1000.0,0.00012998,2]
[326531975,1715077848450,-1000.0,0.00012998,2]
[326531976,1715077848461,-1000.0,0.00012998,2]
[326531977,1715077848485,-1000.0,0.00012998,2]
[326531978,1715077848495,-1000.0,0.00012998,2]
[326531979,1715077848511,-1000.0,0.00012998,2]
[326531980,1715077848521,-1000.0,0.00012998,2]
[326531981,1715077848544,-1000.0,0.00012998,2]
[326531982,1715077848557,-1000.0,0.00012998,2]
[326531983,1715077848567,-1000.0,0.00012998,2]
[326531984,1715077848616,-1000.0,0.00012998,2]
[326531985,1715077848646,-1000.0,0.00012998,2]
[326531986,1715077848676,-1000.0,0.00012998,2]
[326531987,1715077848690,-1000.0,0.00012998,2]
[326531988,1715077848740,-1000.0,0.00012998,2]
[326531989,1715077848815,-1000.0,0.00012998,2]
[326531990,1715077848825,-1000.0,0.00012998,2]
[326531991,1715077848836,-1000.0,0.00012998,2]
[326531992,1715077848862,-1000.0,0.00012998,2]
[326531993,1715077848899,-1000.0,0.00012998,2]
[326531994,1715077849191,-1000.0,0.00012998,2]
[326531995,1715077849202,-1000.0,0.00012998,2]
[326531996,1715077849233,-1000.0,0.00012998,2]
[326531997,1715077849250,-1000.0,0.00012998,2]
[326531998,1715077849296,-1000.0,0.00012998,2]
[326531999,1715077849309,-1000.0,0.00012998,2]
[326532000,1715077849322,-1000.0,0.00012998,2]
[326532001,1715077849333,-1000.0,0.00012998,2]
[326532002,1715077849365,-1000.0,0.00012998,2]
[326532003,1715077849376,-1000.0,0.00012998,2]
[326532004,1715077849409,-1000.0,0.00012998,2]
[326532005,1715077849456,-1000.0,0.00012998,2]
[326532006,1715077849468,-1000.0,0.00012998,2]
[326532007,1715077849478,-1000.0,0.00012998,2]
[326532008,1715077849489,-1000.0,0.00012998,2]
[326532009,1715077849567,-1000.0,0.00012998,2]
[326532010,1715077849578,-1000.0,0.00012998,2]
[326532011,1715077849589,-1000.0,0.00012998,2]
[326532014,1715077849655,-1000.0,0.00012998,2]
[326532016,1715077849666,-1000.0,0.00012998,2]
[326532017,1715077849677,-1000.0,0.00012998,2]
[326532019,1715077849691,-1000.0,0.00012998,2]
[326532020,1715077849715,-1000.0,0.00012998,2]
[326532021,1715077849726,-1000.0,0.00012998,2]
[326532022,1715077849737,-1000.0,0.00012998,2]
[326532023,1715077849769,-1000.0,0.00012998,2]
[326532024,1715077849792,-1000.0,0.00012998,2]
[326532025,1715077849803,-1000.0,0.00012998,2]
[326532026,1715077849813,-1000.0,0.00012998,2]
[326532027,1715077849827,-1000.0,0.00012998,2]
[326532028,1715077849840,-1000.0,0.00012998,2]
[326532029,1715077849851,-1000.0,0.00012998,2]
[326532030,1715077849868,-1000.0,0.00012998,2]
[326532031,1715077849902,-1000.0,0.00012998,2]
[326532032,1715077849940,-1000.0,0.00012998,2]
[326532033,1715077849950,-1000.0,0.00012998,2]
[326532034,1715077849966,-1000.0,0.00012998,2]
[326532035,1715077849977,-1000.0,0.00012998,2]
[326532036,1715077849988,-1000.0,0.00012998,2]
[326532037,1715077850045,-1000.0,0.00012998,2]
[326532038,1715077850099,-1000.0,0.00012998,2]
[326532039,1715077850113,-1000.0,0.00012998,2]
[326532040,1715077850127,-1000.0,0.00012998,2]
[326532041,1715077850160,-1000.0,0.00012998,2]
[326532042,1715077850173,-1000.0,0.00012998,2]
[326532043,1715077850216,-1147.0,0.00012998,2]
[326532044,1715077850234,-207.58542229,0.00012999,2]
[326532045,1715077850260,-1021.6383433,0.00012999,3]
[326532046,1715077850272,-1021.6383433,0.00012999,3]
[326532047,1715077850326,-43025.55609763,0.00013,2]
[326532084,1715077852712,-47059.80327616,0.00013,2]
[326532085,1715077853301,-499.122,0.00013,2]
[326532086,1715077853315,-301.54176508,0.00013,2]
[326532090,1715077855244,-787.83288171,0.00012999,2]
[326532091,1715077855947,8222.10607187,0.000129,2]
[326532094,1715077890368,2731.33268306,0.000129,2]
[326532095,1715077905087,2500.0,0.00012891,2]
[326532096,1715077917303,180.83827824,0.000129,2]
[326532097,1715077941143,240.25696242,0.000129,2]
[326532098,1715077980707,3262.77835597,0.000129,2]
[326532099,1715077981330,160.17130828,0.000129,2]
[326532100,1715078002680,5481.40404792,0.000129,2]
[326532102,1715078034621,1820.88845536,0.000129,2]
[326532105,1715078136556,3654.26936528,0.000129,2]
[326532106,1715078174746,1213.92563692,0.000129,2]
[326532107,1715078175705,1009.26415372,0.00012642,2]
[326532111,1715078212363,314.83336526,0.000129,2]
[326532112,1715078232981,2850.30049632,0.000129,2]
[326532113,1715078244444,1136.19370289,0.00012642,2]
[326532116,1715078269476,2854.93106143,0.000129,2]
[326532117,1715078271311,2436.17957684,0.000129,2]
[326532118,1715078272143,563.59276,0.0001287,2]
[326532120,1715078297563,1078.62814075,0.00012613,2]
[326532123,1715078341799,809.28375794,0.000129,2]
[326532124,1715078363641,1122.76479818,0.00012642,2]
[326532127,1715078455885,1624.1197179,0.000129,2]
[326532129,1715078469927,1063.50566641,0.00012642,2]
[326532130,1715078501390,539.5225053,0.000129,2]
[326532131,1715078513126,1116.77097924,0.00012642,2]
[326532132,1715078550446,2498.06467876,0.000129,2]
[326532133,1715078558473,1082.7464786,0.000129,2]
[326532134,1715078581023,173.51921837,0.000129,2]
[326532135,1715078596273,1007.13687681,0.00012642,2]
[326532136,1715078636672,359.6816702,0.000129,2]
[326532138,1715078664219,547.98305,0.0001287,2]
[326532142,1715078675128,1049.09614837,0.00012613,2]
[326532145,1715078701300,721.83098574,0.000129,2]
[326532146,1715078830778,1044.03102249,0.00012642,2]
[326532147,1715078834034,2185.80659395,0.000129,2]
[326532149,1715078840010,1035.18464839,0.00012642,2]
[326532150,1715078855938,300.0,0.000125,4]
[326532151,1715078861160,600.0,0.000126,4]
[326532152,1715078862875,900.0,0.000127,4]
[326532153,1715078867196,1300.0,0.000128,4]
[326532154,1715078867881,1600.0,0.000129,4]
[326532155,1715078895526,1138.5323902,0.00012642,2]
[326532156,1715078905593,155.0,0.00025,120]
[326532157,1715078911889,239.78778012,0.000129,2]
[326532158,1715078928279,1573.39789585,0.00012642,2]
[326532159,1715078935533,481.22065716,0.000129,2]
[326532161,1715079043797,-293.97796203,0.00012989,2]
[326532164,1715079043808,-774.52375,0.0001299,2]
[326532166,1715079043818,-4837.9682364,0.00012991,2]
[326532169,1715079043828,-4348.4754369,0.00012991,2]
[326532172,1715079043838,-3858.9826373,0.00012991,2]
[326532175,1715079043848,-3369.4898378,0.00012991,2]
[326532178,1715079043859,-2879.9970382,0.00012991,2]
[326532181,1715079043869,-31421.8193623,0.00012991,2]
[326532183,1715079043879,-28242.642986,0.00012991,2]
[326532185,1715079043889,-23246.11829668,0.00012991,2]
[326532209,1715079051751,-363.90749155,0.00012989,2]
[326532210,1715079051760,-1271.35248845,0.00012991,2]
[326532211,1715079084559,320.81377144,0.000129,2]
[326532213,1715079094481,159.85852008,0.000129,2]
[326532214,1715079125533,180.29025803,0.000129,2]
[326532215,1715079196786,524.13488,0.0001287,2]
[326532216,1715079219726,213.87584762,0.000129,2]
[326532217,1715079471715,756.8888134,0.000129,2]
[326532230,1715080240764,-2612.77545496,0.000129,2]
[326532232,1715080240775,-340.7231,0.000129,2]
[326532234,1715080240784,-7834.027,0.00012965,2]
[326532236,1715080240795,-774.52375,0.00012989,2]
[326532238,1715080240805,-293.97796203,0.00012989,2]
[326532239,1715080240819,-151.0,0.00012991,2]
[326532240,1715080240830,-171.842199,0.00012991,2]
[326532241,1715080240841,-171.842199,0.00012991,2]
[326532242,1715080240851,-3656.633082,0.00012991,2]
[326532243,1715080240863,-3656.633082,0.00012991,2]
[326532244,1715080240872,-259.588623,0.00012991,2]
[326532245,1715080240882,-259.588623,0.00012991,2]
[326532246,1715080240893,-248.144191,0.00012991,2]
[326532247,1715080240903,-571.6563837,0.00012991,2]
[326532248,1715080240914,-508.1284219,0.00012991,2]
[326532249,1715080240924,-444.60046,0.00012991,2]
[326532250,1715080240934,-381.0724982,0.00012991,2]
[326532251,1715080240944,-317.5445363,0.00012991,2]
[326532252,1715080240953,-151.0,0.00012991,2]
[326532253,1715080240963,-525.94156,0.00012991,2]
[326532254,1715080240973,-151.0,0.00012991,2]
[326532255,1715080240983,-220.210722,0.00012991,2]
[326532256,1715080240993,-7209.8726114,0.00012991,2]
[326532257,1715080241003,-6408.6421429,0.00012991,2]
[326532258,1715080241013,-5607.4116744,0.00012991,2]
[326532259,1715080241023,-4806.1812058,0.00012991,2]
[326532260,1715080241034,-4004.9507373,0.00012991,2]
[326532261,1715080241045,-220.210722,0.00012991,2]
[326532262,1715080241055,-34467.1834199,0.00012991,2]
[326532263,1715080241064,-17187.81228182,0.00012991,2]
[326532264,1715080241076,-13449.04583158,0.00012991,2]
[326532265,1715080241085,-26806.5328068,0.00012991,2]
[326532266,1715080241096,-22976.2075002,0.00012991,2]
[326532267,1715080241106,-19145.8821937,0.00012991,2]
[326532268,1715080241118,-954.3997376,0.00012991,2]
[326532269,1715080241129,-848.3376488,0.00012991,2]
[326532270,1715080241141,-742.27556,0.00012991,2]
[326532271,1715080241151,-636.2134713,0.00012991,2]
[326532272,1715080241161,-530.1513825,0.00012991,2]
[326532273,1715080241172,-300.35000028,0.00012998,2]
[326532274,1715080241182,-294.86126015,0.00012998,2]
[326532275,1715080241195,-252.49467778,0.00012998,2]
[326532276,1715080241206,-177.54622384,0.00012998,2]
[326532277,1715080241217,-283.92311728,0.00012998,2]
[326532278,1715080241226,-151.0,0.00012998,2]
[326532279,1715080241236,-171.842199,0.00012998,2]
[326532280,1715080241245,-171.842199,0.00012998,2]
[326532281,1715080241256,-3656.633082,0.00012998,2]
[326532282,1715080241267,-3656.633082,0.00012998,2]
[326532283,1715080241277,-259.588623,0.00012998,2]
[326532284,1715080241287,-259.588623,0.00012998,2]
[326532285,1715080241301,-2080.14452016,0.00012999,2]
[326532286,1715080241310,-1021.6383433,0.00012999,3]
[326532287,1715080241320,-1021.6383433,0.00012999,3]
[326532288,1715080241329,-1021.6383433,0.00012999,3]
[326532289,1715080241343,-32070.46349371,0.00012999,2]
[326532290,1715080241352,-151.0,0.00012999,2]
[326532291,1715080241362,-151.0,0.00012999,2]
[326532292,1715080241371,-220.210722,0.00012999,2]
[326532293,1715080241380,-220.210722,0.00012999,2]
[326532294,1715080241390,-643191.70628742,0.00013,2]
[326532295,1715080242454,-3212.35,0.00013,2]
[326532296,1715080242466,-19280.55397,0.00013,2]
[326532299,1715080246332,-1386.76301344,0.00012999,2]
[326532300,1715080246342,-413.94266065,0.00013,2]
[326532301,1715080246355,-470.97999939,0.00013,2]
[326532302,1715080246366,-2303.72204132,0.00013,2]
[326532303,1715080246378,-19230.0,0.00013,2]
[326532308,1715080247230,-32294.08291431,0.00013,2]
[326532309,1715080247242,-1500.68758143,0.00013,2]
[326532310,1715080279468,4500.0,0.000125,4]
[326532311,1715080281803,9100.0,0.000126,4]
[326532312,1715080284968,13700.0,0.000127,4]
[326532313,1715080287809,18200.0,0.000128,4]
[326532314,1715080290099,431.8952,0.00012348,2]
[326532316,1715080901171,299.89062078,0.00012348,2]
[326532317,1715081163175,155.0,0.00012348,2]
[326532318,1715081199795,150.0,0.00011688,2]
[326532319,1715081200524,150.0,0.00012337,2]
[326532320,1715081258235,2900.0,0.000125,4]
[326532321,1715081260914,5800.0,0.000126,4]
[326532322,1715081263201,8800.0,0.000127,4]
[326532323,1715081265779,11700.0,0.000128,4]
[326532358,1715081447637,-2359.13260233,0.00012851,2]
[326532359,1715081447648,-1997.82151721,0.00012852,2]
[326532360,1715081447658,-4081.57767733,0.00012859,2]
[326532361,1715081447668,-438.28463,0.0001287,2]
[326532362,1715081447678,-150.0,0.00012887,2]
[326532363,1715081447688,-10109.56623702,0.00012888,2]
[326532364,1715081447697,-292.25776335,0.00012898,2]
[326532365,1715081447707,-2950.0,0.000129,2]
[326532366,1715081447717,-180.29025803,0.000129,2]
[326532367,1715081447730,-2395.04416701,0.000129,2]
[326532368,1715081447740,-14700.0,0.000129,4]
[326532369,1715081447750,-1817.96966804,0.000129,2]
[326532370,1715081447759,-151.00806602,0.00012986,2]